bitfinex-derivatives/quotes_ETHF0:USTF0_20250123
["timestamp","ask_amount","ask_price","bid_price","bid_amount"]
[1737649770800,0.61024,3276.6,3276.5,0.61024]
[1737649771001,0.28620789,3276.7,3275.9,3.2078]
[1737649771303,0.61032,3276.2,3276.1,0.61031]
[1737649771706,3.2078,3276.4,3276.1,0.61031]
[1737649771906,0.6103,3276.3,3276.2,0.6103]
[1737649772100,0.28621952,3276.7,3275.8,2.36110201]
[1737649772402,4.5068458,3276.6,3276.1,0.61031]
[1737649772704,0.61028,3276.4,3276.3,0.61027]
[1737649773102,0.28623149,3276.5,3275.8,2.36110201]
[1737649773302,0.61029,3276.4,3276.2,0.61029]
[1737649773501,0.61029,3276.4,3276.3,0.61029]
[1737649775204,0.28623149,3276.7,3276.5,0.61024]
[1737649775400,0.28623149,3276.7,3275.7,2.3909]
[1737649775401,0.28623149,3276.7,3276.6,0.61023]
[1737649775606,3.21237889,3277.2,3277.1,0.61014]
[1737649775995,3.49853059,3277.2,3277.1,0.61014]
[1737649776508,3.21237889,3277.2,3277.1,0.61014]
[1737649777002,3.82249889,3277.2,3277.1,0.61014]
[1737649777504,3.21237889,3277.2,3276.8,0.00457889]
[1737649777708,0.61017,3276.9,3276.8,0.00457889]
[1737649778300,2.70926928,3277.1,3276.8,0.00457889]
[1737649778506,0.28616928,3277.1,3277.0,2.97126201]
[1737649778708,0.61470889,3277.2,3277.1,0.61014]
[1737649779006,0.00457889,3277.2,3276.9,0.61016]
[1737649779405,0.61014,3277.1,3277.0,0.61015]
[1737649779715,0.00457889,3277.2,3277.1,0.61014]
[1737649779901,0.00457889,3277.2,3276.8,0.00457889]
[1737649780104,0.61014,3277.1,3277.0,0.61016]
[1737649780410,0.00457889,3277.2,3277.0,0.61016]
[1737649780614,0.61470889,3277.2,3277.1,0.61014]
[1737649780811,0.61017,3277.0,3276.9,0.61016]
[1737649781012,0.61017,3277.0,3276.8,0.00457889]
[1737649781013,0.00457889,3277.2,3276.8,0.00457889]
[1737649781416,0.61017,3276.9,3276.8,0.61475889]
[1737649781816,0.61017,3276.9,3276.8,0.00457889]
[1737649783415,4.62804374,3276.9,3276.8,0.00457889]
[1737649783714,11.75255181,3276.9,3275.9,3.2078]
[1737649783918,11.75255181,3276.9,3275.9,3.81816]
[1737649783919,0.61034,3276.0,3275.9,3.81816]
[1737649784428,0.61034,3276.1,3276.0,0.61034]
[1737649785110,6.64710327,3276.3,3275.9,3.2078]
[1737649785311,0.28615801,3276.2,3276.1,0.61031]
[1737649785818,0.61028,3276.4,3276.3,0.61028]
[1737649786009,0.57237671,3276.6,3275.9,3.2078]
[1737649786209,0.6103,3276.3,3276.2,0.6103]
[1737649787221,0.61028,3276.4,3276.3,0.61027]
[1737649789018,0.6103,3276.3,3276.2,0.61028]
[1737649789219,0.57237671,3276.6,3275.9,3.2078]
[1737649789430,0.61029,3276.4,3276.3,0.61028]
[1737649789620,0.28615801,3276.6,3276.5,0.61025]
[1737649789817,0.28615801,3277.0,3276.3,5.56890201]
[1737649790121,0.28615801,3277.0,3276.9,2.36110201]
[1737649790420,0.57230525,3277.5,3276.9,2.36110201]
[1737649790720,0.57230525,3277.5,3276.9,7.31000201]
[1737649791320,0.28615801,3277.5,3276.9,7.31000201]
[1737649792019,3.2078,3277.6,3276.9,7.31000201]
[1737649792218,10.71438766,3277.9,3276.9,7.31000201]
[1737649792414,0.28610628,3277.8,3276.9,7.31000201]
[1737649792617,0.57221318,3277.8,3276.9,7.31000201]
[1737649793022,0.28610628,3277.8,3276.9,7.31000201]
[1737649794022,10.71438766,3277.9,3276.9,7.31000201]
[1737649795022,3.2078,3278.0,3276.9,7.31000201]
[1737649795728,3.2078,3278.0,3277.4,3.2078]
[1737649795928,3.2078,3278.0,3277.2,2.36110201]
[1737649796518,3.2078,3278.0,3277.4,3.2078]
[1737649796720,0.00457889,3277.9,3277.4,3.2078]
[1737649797822,0.00457889,3277.9,3277.3,0.00457889]
[1737649798421,2.42877889,3277.9,3277.3,0.00457889]
[1737649798727,4.00226611,3277.8,3277.3,0.00457889]
[1737649798921,3.2078,3277.5,3277.3,0.00457889]
[1737649799318,3.92726735,3277.4,3277.3,0.00457889]
[1737649799515,2.3862,3277.7,3277.3,0.00457889]
[1737649799924,3.95156783,3277.6,3277.3,0.00457889]
[1737649800120,0.28612306,3277.8,3277.5,2.36110201]
[1737649800632,0.28612306,3277.8,3277.3,3.21237889]
[1737649800823,6.45764216,3277.7,3277.3,3.21237889]
[1737649801517,0.28613059,3277.6,3277.3,3.21237889]
[1737649801721,3.2078,3277.5,3277.3,0.00457889]
[1737649801917,7.18242184,3277.5,3277.3,0.00457889]
[1737649802125,0.28613059,3277.4,3277.3,0.00457889]
[1737649802625,3.2078,3277.5,3277.3,0.00457889]
[1737649803421,0.28611582,3277.4,3277.3,0.00457889]
[1737649803927,0.5722518,3277.4,3277.3,0.00457889]
[1737649804125,4.5370627,3277.4,3277.3,0.00457889]
[1737649806033,4.53910534,3277.4,3277.3,0.00457889]
[1737649806232,9.53910534,3277.4,3277.3,0.00457889]
[1737649806435,9.92802209,3277.4,3276.8,3.2078]
[1737649806732,0.5722518,3277.3,3276.8,3.2078]
[1737649807623,3.89632002,3277.2,3276.8,3.2078]
[1737649807933,0.28611582,3277.1,3276.8,3.2078]
[1737649808131,0.5722518,3277.1,3276.8,3.2078]
[1737649808337,6.48576229,3277.0,3276.8,3.2078]
[1737649808635,0.28613598,3276.9,3276.8,3.2078]
[1737649808836,0.27365347,3276.9,3276.8,3.2078]
[1737649809035,3.21237889,3277.9,3276.8,5.6027]
[1737649809228,0.00457889,3277.9,3277.7,2.36110201]
[1737649809440,10.71438766,3278.6,3277.8,8.0704]
[1737649809629,0.28601946,3278.5,3278.1,2.36110201]
[1737649809833,0.28601651,3278.5,3277.9,40.8]
[1737649810125,10.71438766,3278.6,3277.8,13.03810201]
[1737649810323,10.71438766,3278.6,3277.8,10.43150201]
[1737649810529,0.00457889,3278.5,3277.8,10.43150201]
[1737649810729,3.90468365,3278.5,3277.8,10.43150201]
[1737649810928,6.51838365,3278.5,3277.8,8.0704]
[1737649811932,3.90468365,3278.5,3277.8,10.43150201]
[1737649812134,0.00457889,3278.5,3278.1,2.36110201]
[1737649812635,0.00457889,3278.5,3278.4,2.36110201]
[1737649813031,0.00457889,3278.5,3278.1,2.36110201]
[1737649813434,0.00457889,3278.5,3278.4,2.36110201]
[1737649813834,0.00457889,3278.5,3278.2,3.2078]
[1737649814045,0.00457889,3278.5,3277.8,4.8626]
[1737649814235,0.00457889,3278.5,3277.8,7.22370201]
[1737649815131,3.89447198,3278.4,3277.8,7.22370201]
[1737649815840,3.89447198,3278.4,3277.7,3.2078]
[1737649816142,5.56890201,3278.0,3277.3,3.2078]
[1737649816339,2.3933,3277.9,3277.3,3.2078]
[1737649816544,2.482,3277.8,3277.3,3.2078]
[1737649816744,2.482,3277.8,3276.3,2.36110201]
[1737649816745,3.2078,3277.4,3276.3,2.36110201]
[1737649817037,3.2078,3277.0,3276.3,2.36110201]
[1737649817237,3.2078,3277.0,3276.1,2.548]
[1737649817431,6.38135284,3276.9,3276.1,2.548]
[1737649817633,6.38135284,3276.9,3276.0,2.36110201]
[1737649818535,6.38135284,3276.9,3276.3,2.36110201]
[1737649818738,3.2078,3277.0,3276.6,2.36110201]
[1737649819142,3.94585657,3276.9,3276.6,2.36110201]
[1737649819336,3.2078,3277.0,3276.6,2.36110201]
[1737649819838,3.2078,3277.0,3276.4,2.86134023]
[1737649820344,3.2078,3277.4,3276.8,2.86134023]
[1737649821239,3.2078,3277.4,3277.2,2.86134023]
[1737649821543,3.2078,3277.8,3277.2,2.86134023]
[1737649821740,2.447,3278.4,3276.7,2.44567889]
[1737649821741,3.2078,3278.2,3277.6,2.86134023]
[1737649822147,3.2078,3278.2,3277.4,3.2078]
[1737649822337,3.2078,3277.8,3277.4,3.2078]
[1737649823146,3.2078,3278.2,3277.4,3.2078]
[1737649823747,3.2078,3278.2,3277.6,2.86134023]
[1737649824248,3.2078,3278.2,3277.7,43.3136]
[1737649824442,3.2078,3278.2,3278.0,2.86134023]
[1737649824646,2.4487,3279.1,3278.0,2.86134023]
[1737649824647,3.2078,3278.6,3278.0,2.86134023]
[1737649824842,2.4487,3279.1,3278.4,2.86134023]
[1737649824843,13.92218766,3279.0,3278.4,2.86134023]
[1737649826848,10.71438766,3279.0,3278.4,2.86134023]
[1737649827448,10.71438766,3279.0,3278.9,2.86134023]
[1737649827951,10.71438766,3279.0,3278.9,5.29754023]
[1737649828247,9.19736441,3279.0,3278.9,5.29754023]
[1737649828445,8.34406368,3279.2,3278.9,7.89874023]
[1737649828747,6.96353039,3279.2,3278.9,7.89874023]
[1737649829543,3.2078,3280.0,3278.9,7.89874023]
[1737649829848,2.5318,3281.7,3279.9,2.86134023]
[1737649829849,3.2078,3280.4,3279.9,2.86134023]
[1737649830053,3.2078,3280.4,3279.5,3.2078]
[1737649830054,3.2078,3280.4,3279.5,2.86134023]
[1737649830352,3.92273226,3280.3,3279.5,2.86134023]
[1737649830847,3.2078,3280.0,3279.5,2.86134023]
[1737649831244,3.98585144,3279.9,3279.5,2.86134023]
[1737649831545,3.2078,3280.1,3279.5,2.86134023]
[1737649832050,7.11904975,3280.1,3279.5,2.86134023]
[1737649833553,7.11904975,3280.1,3279.2,3.2078]
[1737649834055,0.00457889,3280.2,3280.0,3.2078]
[1737649834246,0.00457889,3280.2,3279.9,2.86134023]
[1737649836555,0.00457889,3280.2,3280.0,3.2078]
[1737649836755,0.00457889,3280.2,3280.0,5.7398]
[1737649837160,2.5398,3281.4,3280.0,5.7398]
[1737649837161,2.5398,3281.4,3280.8,2.86134023]
[1737649837651,2.5398,3281.4,3280.0,5.39334023]
[1737649837652,5.5834,3281.5,3281.2,2.86134023]
[1737649837857,3.2078,3281.5,3281.2,2.86134023]
[1737649838058,3.2078,3281.5,3281.2,43.66134023]
[1737649838353,0.00290431,3281.7,3281.2,43.66134023]
[1737649838558,0.00290431,3281.7,3281.6,2.86134023]
[1737649838753,0.00290431,3281.7,3281.0,0.00457164]
[1737649838964,7.13571539,3281.6,3281.0,0.00457164]
[1737649839154,2.5021,3281.5,3281.0,0.00457164]
[1737649840052,4.04438458,3281.4,3281.0,0.00457164]
[1737649840248,2.5021,3281.5,3281.0,0.00457164]
[1737649840444,2.5021,3281.5,3281.2,2.86134023]
[1737649840652,2.5021,3281.5,3281.0,0.00457164]
[1737649841856,3.2078,3281.1,3281.0,0.00457164]
[1737649843459,7.19190498,3281.1,3281.0,0.00457164]
[1737649844054,12.19190498,3281.1,3279.6,2.86134023]
[1737649844255,3.2078,3280.0,3279.5,3.2078]
[1737649844457,3.2078,3280.0,3279.2,2.86134023]
[1737649844754,6.38833337,3279.9,3279.2,2.86134023]
[1737649844957,3.2078,3279.6,3278.8,2.86134023]
[1737649845362,0.00457164,3279.5,3278.9,0.00457164]
[1737649846062,3.2078,3279.2,3278.9,0.00457164]
[1737649846564,3.98892092,3279.1,3278.9,0.00457164]
[1737649846963,3.2078,3279.2,3278.9,0.00457164]
[1737649847161,0.00457164,3279.5,3279.1,3.2078]
[1737649848166,0.00457164,3279.5,3278.9,0.00457164]
[1737649848668,0.00457164,3279.5,3279.2,2.86134023]
[1737649850468,0.00457164,3279.5,3279.4,3.2078]
[1737649851561,3.2078,3280.2,3279.4,8.2078]
[1737649851755,3.2078,3280.2,3279.8,2.86134023]
[1737649852055,3.2078,3280.6,3279.9,40.8]
[1737649852468,7.09817759,3280.6,3279.8,2.86134023]
[1737649852863,0.00290431,3280.5,3279.5,44.0078]
[1737649853061,0.00290431,3280.5,3279.5,40.8]
[1737649853372,3.2078,3280.2,3279.1,3.2078]
[1737649853764,0.00290431,3280.5,3279.4,2.86134023]
[1737649853964,0.00290431,3280.5,3279.8,6.06914023]
[1737649854365,0.00290431,3280.5,3280.2,2.86134023]
[1737649854660,3.2078,3280.6,3280.2,2.86134023]
[1737649854867,3.2078,3281.2,3280.3,2.5652]
[1737649855168,10.5243,3281.8,3280.7,3.2078]
[1737649855565,4.00795724,3281.7,3280.7,3.2078]
[1737649855971,4.00795724,3281.7,3280.9,0.00457164]
[1737649858969,3.2078,3281.4,3280.9,0.00457164]
[1737649859676,3.90228392,3281.3,3280.9,0.00457164]
[1737649860374,3.2078,3281.4,3280.9,0.00457164]
[1737649860973,7.3165,3281.8,3279.8,2.86134023]
[1737649860974,3.2078,3281.0,3279.8,2.86134023]
[1737649861271,3.2078,3280.6,3279.8,2.86134023]
[1737649861471,4.8944,3280.9,3279.3,2.4789]
[1737649861472,3.2078,3280.2,3279.4,2.86134023]
[1737649861670,3.2078,3280.2,3279.3,2.4789]
[1737649861867,3.90868177,3280.1,3279.1,3.2078]
[1737649862075,3.2078,3280.2,3279.1,3.2078]
[1737649862271,0.00457164,3279.9,3279.4,2.86134023]
[1737649862770,0.00457164,3279.9,3279.3,0.00457164]
[1737649862771,3.2078,3279.8,3279.3,0.00457164]
[1737649863570,3.2078,3279.8,3279.3,2.86591187]
[1737649863875,3.2078,3279.8,3279.3,0.00457164]
[1737649864262,0.00457164,3279.9,3279.3,0.00457164]
[1737649864263,0.00457164,3279.9,3279.6,2.86134023]
[1737649864481,3.2078,3280.2,3279.6,2.86134023]
[1737649864875,3.2078,3280.2,3279.5,3.2078]
[1737649865080,3.2078,3280.2,3279.6,2.86134023]
[1737649865375,3.2078,3280.2,3279.6,5.46984023]
[1737649866471,2.5172,3280.8,3280.1,3.2078]
[1737649866472,3.2078,3280.8,3280.1,3.2078]
[1737649867667,2.3577,3280.9,3280.1,44.0078]
[1737649868170,3.8841818,3280.8,3280.1,3.2078]
[1737649868764,2.3577,3280.9,3280.1,3.2078]
[1737649868974,4.0385266,3280.7,3280.1,3.2078]
[1737649869178,4.0385266,3280.8,3279.7,46.4172]
[1737649869480,3.2078,3280.8,3279.7,2.4094]
[1737649869780,7.2463266,3280.8,3279.6,5.46984023]
[1737649869968,9.6164266,3280.8,3279.6,5.46984023]
[1737649870167,3.2078,3280.4,3279.6,2.86134023]
[1737649871678,3.2078,3280.4,3279.4,40.8]
[1737649871869,6.47471608,3280.3,3279.3,2.36807164]
[1737649872470,2.451,3280.3,3279.7,3.2078]
[1737649872672,3.2078,3280.4,3280.0,2.86134023]
[1737649873675,3.2078,3280.4,3279.7,3.2078]
[1737649874179,5.5655,3280.9,3279.7,3.2078]
[1737649874577,5.5655,3280.9,3280.1,3.2078]
[1737649875377,3.97687264,3280.8,3280.1,3.2078]
[1737649875784,3.2078,3280.5,3279.6,6.06914023]
[1737649876379,3.2078,3280.1,3279.3,2.36807164]
[1737649876881,3.2078,3280.6,3279.6,6.06914023]
[1737649877586,3.2078,3280.6,3280.0,2.86134023]
[1737649877788,3.2078,3280.6,3280.0,6.06914023]
[1737649878087,3.2078,3280.6,3280.0,3.2078]
[1737649878482,3.2078,3280.6,3280.0,6.06914023]
[1737649879682,3.2078,3280.6,3280.0,3.2078]
[1737649880388,4.02464045,3280.5,3279.5,3.2078]
[1737649880592,9.15134045,3280.5,3279.5,3.2078]
[1737649880890,9.15134045,3280.5,3279.4,0.24775853]
[1737649881189,0.28586576,3280.4,3279.3,43.16807164]
[1737649881490,3.99915278,3280.3,3279.3,43.16807164]
[1737649882488,3.99915278,3280.3,3279.3,43.4089446]
[1737649882781,3.99915278,3280.3,3279.3,46.6167446]
[1737649883183,3.2078,3280.1,3279.3,46.6167446]
[1737649883383,3.2078,3280.1,3279.3,2.6089446]
[1737649883681,2.4565,3280.0,3279.3,2.6089446]
[1737649883880,3.2078,3280.1,3279.7,3.2078]
[1737649884483,3.2078,3280.1,3280.0,2.86134023]
[1737649884879,3.2078,3280.1,3279.7,3.2078]
[1737649885081,3.2078,3280.8,3280.0,2.86134023]
[1737649885285,3.2078,3280.8,3280.4,2.86134023]
[1737649885685,3.2078,3280.8,3280.4,5.40294023]
[1737649886088,0.002,3282.6,3280.7,3.2078]
[1737649886388,2.86134023,3283.1,3282.2,2.86134023]
[1737649886389,7.17924057,3282.8,3282.2,2.86134023]
[1737649886783,2.4565,3283.1,3281.8,6.06914023]
[1737649887094,2.74215541,3283.1,3281.8,6.06914023]
[1737649887295,3.91656401,3283.0,3281.8,6.06914023]
[1737649889097,3.2078,3282.7,3281.8,6.06914023]
[1737649889290,3.2078,3282.7,3281.9,3.2078]
[1737649889494,3.93907944,3282.6,3281.9,3.2078]
[1737649890997,3.2078,3282.7,3281.9,3.2078]
[1737649891185,3.2078,3282.7,3281.8,2.86134023]
[1737649891895,4.00650428,3282.6,3281.8,2.86134023]
[1737649892493,6.53900428,3282.6,3281.7,3.2078]
[1737649893299,6.53900428,3282.6,3281.4,2.86134023]
[1737649893800,3.2078,3282.3,3281.4,2.86134023]
[1737649894192,4.0271252,3282.2,3281.4,2.86134023]
[1737649894603,4.0271252,3282.2,3281.7,3.2078]
[1737649894804,4.0271252,3282.2,3281.3,0.00457164]
[1737649895003,2.4225,3282.1,3281.3,0.00457164]
[1737649895210,3.2078,3281.9,3281.3,0.00457164]
[1737649895711,3.90191518,3281.8,3281.3,0.00457164]
[1737649896108,2.4052,3281.7,3281.3,0.00457164]
[1737649896610,4.00641492,3281.6,3281.3,0.00457164]
[1737649897509,3.2078,3281.5,3280.6,2.86134023]
[1737649897710,3.2078,3281.1,3280.3,3.2078]
[1737649897911,0.28583404,3281.0,3279.8,2.86134023]
[1737649898106,4.21221545,3281.0,3279.8,2.86134023]
[1737649898418,0.28583404,3280.9,3279.8,2.86134023]
[1737649898607,3.2078,3280.7,3279.8,2.86134023]
[1737649898802,3.2078,3280.7,3280.0,0.00457164]
[1737649898803,3.2078,3280.2,3280.0,0.00457164]
[1737649899103,4.29379525,3280.1,3279.4,4.70960004]
[1737649899305,4.29379525,3280.1,3279.6,3.2078]
[1737649899306,4.29368162,3280.1,3279.6,3.2078]
[1737649899507,4.00789343,3280.1,3279.8,2.86134023]
[1737649899717,0.00457164,3280.7,3280.0,3.2078]
[1737649899918,0.00457164,3280.7,3280.3,2.86134023]
[1737649900209,0.00457164,3280.7,3280.4,3.2078]
[1737649900412,0.00457164,3280.7,3280.6,40.8]
[1737649902318,4.9481,3281.8,3280.6,45.8]
[1737649902319,4.8836,3281.8,3280.6,45.8]
[1737649902507,2.3667,3281.8,3281.7,3.2078]
[1737649902913,3.2078,3282.4,3281.7,3.2078]
[1737649903304,3.96235452,3282.3,3281.7,3.2078]
[1737649903517,3.96235452,3282.3,3281.7,3.21237164]
[1737649904317,6.82369475,3282.3,3281.7,3.21237164]
[1737649905118,6.82369475,3282.3,3281.7,0.00457164]
[1737649905322,3.2078,3281.9,3281.7,0.00457164]
[1737649905517,6.82369475,3282.3,3281.7,0.00457164]
[1737649905705,4.02248067,3281.8,3281.7,0.00457164]
[1737649905910,3.2078,3282.1,3281.2,3.2078]
[1737649906106,3.2078,3281.6,3280.8,3.2078]
[1737649906511,4.00802219,3281.5,3280.8,3.2078]
[1737649907118,4.00802219,3281.5,3280.8,3.21237164]
[1737649908519,0.28577916,3281.4,3280.8,3.21237164]
[1737649909115,6.3393529,3281.3,3280.8,3.21237164]
[1737649909619,0.28578516,3281.2,3280.8,3.21237164]
[1737649909823,0.57156432,3281.2,3280.8,3.21237164]
[1737649910018,4.00893453,3281.1,3280.8,3.21237164]
[1737649911022,2.4409,3281.3,3280.8,3.21237164]
[1737649912226,2.4409,3281.3,3280.8,0.00457164]
[1737649913627,0.57153981,3281.4,3281.1,3.2078]
[1737649913928,0.2857699,3281.4,3281.1,3.2078]
[1737649914317,0.2857699,3281.8,3281.1,3.2078]
[1737649914722,3.88670322,3282.1,3281.1,3.2078]
[1737649914911,0.28570562,3282.0,3281.1,3.2078]
[1737649915117,0.28570562,3282.0,3280.9,5.0633]
[1737649915118,0.57147552,3282.0,3281.5,3.2078]
[1737649915313,6.428e-05,3282.0,3281.9,3.2078]
[1737649915615,0.28570713,3282.8,3281.9,3.2078]
[1737649915923,8.0117,3282.9,3281.9,3.2078]
[1737649916110,3.90271955,3282.3,3281.9,3.2078]
[1737649916309,8.0117,3282.9,3281.9,3.2078]
[1737649916714,0.28567641,3282.8,3281.8,2.86134023]
[1737649916916,8.0117,3282.9,3281.8,2.86134023]
[1737649917115,3.95248011,3282.3,3281.8,2.86134023]
[1737649918028,3.95248011,3282.3,3281.5,3.2078]
[1737649918229,3.95248011,3282.3,3281.9,3.2078]
[1737649918519,9.36312034,3282.3,3281.0,6.06914023]
[1737649918725,0.28572951,3282.2,3281.0,6.06914023]
[1737649918922,3.2078,3282.1,3281.0,6.06914023]
[1737649919123,2.74632951,3282.0,3281.0,3.2078]
[1737649919623,3.9784047,3281.9,3281.0,3.2078]
[1737649919831,0.28572951,3281.8,3281.0,3.2078]
[1737649920124,3.2078,3281.7,3281.0,3.2078]
[1737649920327,3.2078,3282.7,3281.6,3.2078]
[1737649920519,3.2078,3283.3,3282.3,3.2078]
[1737649920721,0.2856539,3283.2,3282.3,3.2078]
[1737649921930,3.2078,3283.3,3282.3,3.2078]
[1737649922125,5.0746,3283.4,3282.3,3.2078]
[1737649923033,3.2078,3283.2,3282.3,3.2078]
[1737649923431,5.0746,3283.4,3282.3,6.06914023]
[1737649924430,3.2078,3283.7,3282.3,6.06914023]
[1737649924725,3.2078,3283.7,3283.1,3.2078]
[1737649925027,3.96297093,3283.6,3283.1,3.2078]
[1737649925623,3.21237164,3283.7,3283.1,3.2078]
[1737649926029,0.00457164,3283.7,3283.1,3.2078]
[1737649926823,3.88606798,3283.6,3283.1,3.2078]
[1737649927629,0.00457164,3283.7,3283.3,2.86134023]
[1737649928430,0.00457164,3283.7,3283.5,3.2078]
[1737649931736,0.00457164,3283.7,3283.3,2.86134023]
[1737649931737,0.00457164,3283.7,3283.1,3.2078]
[1737649932130,4.00053264,3283.6,3283.1,3.2078]
[1737649932324,0.00457164,3283.7,3283.1,3.2078]
[1737649932724,0.00457164,3283.7,3283.3,2.86134023]
[1737649933538,0.00457164,3283.7,3283.2,3.2078]
[1737649933933,0.00457164,3283.7,3283.6,3.2078]
[1737649934628,2.5853,3284.6,3283.6,8.2078]
[1737649934830,2.5853,3284.6,3284.2,2.86134023]
[1737649936532,3.95814498,3284.5,3284.1,3.2078]
[1737649936730,3.95814498,3284.5,3283.7,3.2078]
[1737649937135,3.95814498,3284.5,3283.8,2.86134023]
[1737649938341,3.2078,3284.2,3283.7,3.2078]
[1737649938837,6.42698074,3284.1,3283.7,3.2078]
[1737649939337,2.4467,3284.0,3283.2,3.2078]
[1737649939729,3.93499824,3283.9,3283.2,3.2078]
[1737649941036,2.4784,3284.1,3283.6,3.2078]
[1737649941236,2.4784,3284.1,3283.8,2.86134023]
[1737649941635,2.4784,3284.1,3283.6,3.2078]
[1737649941935,3.89342949,3284.0,3283.6,3.2078]
[1737649942129,3.2078,3283.8,3283.2,3.2078]
[1737649942336,2.4488,3283.7,3283.2,3.2078]
[1737649942534,6.36645232,3283.7,3283.2,3.2078]
[1737649943639,6.36645232,3283.7,3283.0,0.00457164]
[1737649944237,2.4144,3283.6,3283.0,0.00457164]
[1737649944541,3.2078,3283.4,3283.0,0.00457164]
[1737649944840,3.9038634,3283.3,3282.8,3.2078]
[1737649945236,3.9038634,3283.3,3282.2,2.86134023]
[1737649945435,3.9038634,3283.3,3282.3,3.2078]
[1737649946041,0.00457164,3283.1,3282.5,0.00457164]
[1737649946342,7.19891875,3283.0,3282.5,0.00457164]
[1737649946533,7.19891875,3283.0,3281.9,3.2078]
[1737649947744,7.19891875,3283.0,3282.1,0.00457164]
[1737649948742,3.2078,3282.6,3282.1,0.00457164]
[1737649948932,2.5335,3282.5,3282.1,0.00457164]
[1737649949134,6.42951359,3282.5,3282.1,0.00457164]
[1737649949740,5.1734,3282.4,3282.1,0.00457164]
[1737649950241,3.88975605,3282.3,3282.1,0.00457164]
[1737649951035,2.6142,3282.4,3282.1,0.00457164]
[1737649951237,2.5335,3282.5,3282.3,3.2078]
[1737649951540,2.5335,3282.5,3282.1,0.00457164]
[1737649951842,3.90833213,3282.4,3282.1,0.00457164]
[1737649956043,3.90833213,3282.4,3281.8,3.2078]
[1737649956237,3.90833213,3282.4,3281.3,3.2078]
[1737649956745,0.00204677,3282.3,3281.3,3.2078]
[1737649957248,4.03327388,3282.2,3281.5,0.00457164]
[1737649957641,0.00204677,3282.3,3281.7,3.2078]
[1737649957942,0.00204677,3282.3,3281.8,2.86134023]
[1737649958450,0.00204677,3282.3,3281.7,3.2078]
[1737649959239,0.00204677,3282.3,3282.1,3.2078]
[1737649959450,0.00204677,3282.3,3282.1,6.06914023]
[1737649959944,0.00204677,3282.3,3282.2,2.3873]
[1737649962544,0.00204677,3282.3,3282.1,3.2078]
[1737649962956,4.01400018,3282.2,3281.6,3.2078]
[1737649963344,4.01400018,3282.2,3281.5,0.00457164]
[1737649964245,0.00204677,3282.3,3281.7,6.06914023]
[1737649964449,3.2078,3283.0,3282.1,6.06914023]
[1737649964753,3.2078,3283.0,3282.5,3.2078]
[1737649965155,3.2078,3283.0,3282.1,3.2078]
[1737649965460,6.63585614,3282.9,3282.1,3.2078]
[1737649966449,0.28566276,3282.8,3282.1,3.2078]
[1737649966743,3.9066438,3282.7,3282.1,3.2078]
[1737649967554,2.87686276,3282.6,3282.1,3.2078]
[1737649967955,3.97840435,3282.5,3281.6,3.2078]
[1737649968157,2.86134023,3282.4,3281.6,3.2078]
[1737649968357,3.2078,3282.2,3281.5,0.00457164]
[1737649968655,3.92710978,3282.1,3281.5,0.00457164]
[1737649968859,6.51080978,3282.1,3281.5,0.00457164]
[1737649969054,0.28566276,3282.0,3281.5,0.00457164]
[1737649969448,3.89683568,3281.9,3281.5,0.00457164]
[1737649970264,3.2078,3281.8,3281.5,0.00457164]
[1737649970556,12.7948223,3281.8,3280.7,3.2078]
[1737649970760,3.2078,3281.4,3280.7,3.2078]
[1737649971162,4.1760223,3281.3,3280.7,3.2078]
[1737649971760,0.2857547,3281.2,3280.7,3.21237164]
[1737649972867,4.01169348,3281.1,3280.7,3.21237164]
[1737649973962,6.48439388,3281.2,3280.7,0.00457164]
[1737649974163,5.8106,3281.0,3280.7,0.00457164]
[1737649974364,9.81263081,3281.0,3279.9,3.2078]
[1737649974559,3.25106784,3280.9,3279.9,3.2078]
[1737649974764,0.28583844,3280.8,3279.9,3.2078]
[1737649974969,4.28786925,3280.8,3279.9,3.2078]
[1737649975265,4.00203081,3280.8,3279.9,3.2078]
[1737649975462,0.2858294,3280.7,3279.9,3.2078]
[1737649975768,0.2858294,3280.7,3280.0,0.00457164]
[1737649976071,4.04341232,3280.6,3280.0,0.00457164]
[1737649976264,5.8106,3281.0,3280.1,2.86134023]
[1737649976470,2.6028,3281.0,3280.3,3.2078]
[1737649976676,2.5415,3281.2,3280.3,3.2078]
[1737649978571,3.87134693,3281.1,3280.3,3.2078]
[1737649979973,2.5415,3281.2,3280.3,3.2078]
[1737649980367,2.5415,3281.2,3280.5,2.86134023]
[1737649980564,2.5415,3281.2,3280.6,2.5356]
[1737649981475,0.00457164,3281.3,3280.7,3.2078]
[1737649982471,3.98808251,3281.2,3280.6,2.5356]
[1737649982773,2.5031,3281.1,3280.6,2.5356]
[1737649983272,0.00457164,3281.3,3281.0,3.2078]
[1737649984176,0.00457164,3281.3,3280.6,2.5356]
[1737649984177,3.88970937,3281.2,3280.6,3.2078]
[1737649984368,6.7510496,3281.2,3280.6,3.2078]
[1737649984567,6.7510496,3281.2,3279.5,6.249]
[1737649984568,3.2078,3281.0,3280.0,3.21237164]
[1737649984772,2.86134023,3280.8,3280.0,3.21237164]
[1737649984972,3.2078,3280.6,3280.0,3.21237164]
[1737649985177,3.2078,3280.6,3280.0,0.00457164]
[1737649985471,3.2078,3280.6,3280.1,2.86134023]
[1737649985878,2.5761,3280.9,3280.5,3.2078]
[1737649986471,4.01448078,3280.8,3280.1,3.2078]
[1737649986776,2.6989,3280.7,3280.1,3.2078]
[1737649987173,4.01448078,3280.6,3280.1,3.2078]
[1737649987677,2.6989,3280.7,3280.1,3.2078]
[1737649989474,2.5761,3280.9,3280.1,6.06914023]
[1737649990064,2.5761,3280.9,3280.1,3.2078]
[1737649990274,4.02572395,3280.8,3280.1,3.2078]
[1737649990578,7.23352395,3280.8,3280.1,3.2078]
[1737649990874,10.09486418,3280.8,3280.1,3.2078]
[1737649991069,0.28585677,3280.7,3280.1,3.2078]
[1737649991573,4.03682737,3280.6,3280.1,3.2078]
[1737649993577,3.2078,3280.8,3280.1,3.2078]
[1737649994164,0.28584021,3280.7,3280.1,3.2078]
[1737649994377,4.21388717,3280.7,3280.0,0.00457164]
[1737649994771,3.92804696,3280.7,3280.0,0.00457164]
[1737649995681,0.28584817,3280.6,3280.0,0.00457164]
[1737649996080,3.97709525,3280.5,3280.0,0.00457164]
[1737649996583,0.28584817,3280.4,3280.0,0.00457164]
[1737649997174,0.57171354,3280.6,3280.0,0.00457164]